bitfinex-derivatives/quotes_BTCF0:USTF0_20250114
["timestamp","ask_amount","ask_price","bid_price","bid_amount"]
[1736877045294,0.002,96378.0,96364.0,0.3608]
[1736877045596,0.051914,96365.0,96364.0,0.3608]
[1736877048498,0.06452161,96365.0,96364.0,0.3608]
[1736877049000,0.06652161,96365.0,96364.0,0.3608]
[1736877050401,0.06652161,96365.0,96350.0,0.0457]
[1736877050402,0.01460761,96365.0,96350.0,0.0457]
[1736877050600,0.051926,96342.0,96341.0,0.36235684]
[1736877053296,0.052926,96342.0,96341.0,0.37035684]
[1736877053502,0.06579676,96342.0,96341.0,0.37035684]
[1736877054103,0.01387076,96342.0,96341.0,0.42228384]
[1736877054510,0.06579676,96342.0,96341.0,0.42228384]
[1736877054697,0.06579676,96342.0,96341.0,0.37035684]
[1736877054903,0.06579676,96342.0,96341.0,0.00955684]
[1736877055905,0.06579676,96342.0,96341.0,0.008]
[1736877056309,0.06479676,96342.0,96329.0,8.531e-05]
[1736877056612,0.051933,96330.0,96329.0,8.531e-05]
[1736877058520,0.051933,96330.0,96329.0,0.00708531]
[1736877059016,0.052933,96330.0,96329.0,0.00608531]
[1736877061007,0.06603647,96330.0,96329.0,0.00608531]
[1736877061909,0.06603647,96330.0,96329.0,0.05801831]
[1736877062306,0.001,96330.0,96329.0,0.05801831]
[1736877062916,0.001,96330.0,96329.0,1.55801831]
[1736877063819,0.051923,96349.0,96339.0,0.051928]
[1736877064115,0.051923,96349.0,96348.0,0.3608]
[1736877064319,0.051923,96349.0,96348.0,0.412723]
[1736877064624,0.051923,96349.0,96348.0,0.3608]
[1736877065124,0.12714557,96358.0,96340.0,0.0556]
[1736877065125,0.051927,96341.0,96340.0,0.0556]
[1736877066321,0.052927,96341.0,96340.0,0.0606]
[1736877066809,0.052927,96341.0,96340.0,0.005]
[1736877066810,0.06566218,96341.0,96340.0,0.005]
[1736877070112,0.001,96341.0,96340.0,0.056928]
[1736877070613,0.051914,96365.0,96340.0,0.306]
[1736877070815,0.00068,96366.0,96365.0,0.051914]
[1736877071315,0.0142246,96369.0,96368.0,0.051912]
[1736877071521,0.00155719,96369.0,96368.0,0.051912]
[1736877071718,0.05346919,96369.0,96368.0,0.051912]
[1736877072118,0.00155719,96369.0,96368.0,0.051912]
[1736877072730,0.00855719,96369.0,96368.0,0.052912]
[1736877072919,0.06046919,96369.0,96368.0,0.001]
[1736877073234,0.05346919,96369.0,96368.0,0.001]
[1736877073737,0.05346919,96369.0,96368.0,0.052912]
[1736877074824,0.05346919,96369.0,96368.0,0.051912]
[1736877075018,0.05346919,96369.0,96368.0,0.003]
[1736877075826,0.05346919,96369.0,96368.0,0.002]
[1736877076124,0.05346919,96369.0,96362.0,0.1276]
[1736877076333,0.05346919,96369.0,96368.0,0.052912]
[1736877076726,0.05346919,96369.0,96368.0,0.051912]
[1736877076925,0.05346919,96369.0,96368.0,0.052912]
[1736877078530,0.05346919,96369.0,96368.0,0.051912]
[1736877079031,0.05346919,96369.0,96368.0,0.052912]
[1736877079334,0.00060001,96396.0,96391.0,0.0519]
[1736877079528,0.051897,96397.0,96395.0,0.051898]
[1736877079723,0.01258345,96397.0,96396.0,0.051897]
[1736877079935,0.051896,96399.0,96396.0,0.051897]
[1736877080136,0.051897,96397.0,96396.0,0.051897]
[1736877080330,0.01227451,96408.0,96392.0,0.06]
[1736877080537,0.55934247,96413.0,96400.0,0.3608]
[1736877080831,0.55934247,96413.0,96412.0,0.051889]
[1736877080832,0.00155655,96413.0,96412.0,0.051889]
[1736877081926,0.051882,96426.0,96425.0,0.051882]
[1736877082434,0.051882,96426.0,96424.0,0.3608]
[1736877083340,0.051882,96426.0,96425.0,0.001]
[1736877083341,0.057882,96426.0,96425.0,0.001]
[1736877084837,0.056882,96426.0,96424.0,0.3618]
[1736877085143,0.051882,96425.0,96424.0,0.3618]
[1736877085435,0.051882,96425.0,96424.0,0.3608]
[1736877086141,0.051882,96425.0,96424.0,0.3618]
[1736877088039,0.051882,96425.0,96424.0,0.001]
[1736877088234,0.056882,96425.0,96424.0,0.001]
[1736877089342,0.056882,96425.0,96411.0,0.3608]
[1736877089343,0.051889,96412.0,96411.0,0.3608]
[1736877090032,0.0655,96419.0,96404.0,0.3608]
[1736877090239,0.3608,96411.0,96390.0,0.3608]
[1736877090441,0.051899,96393.0,96392.0,0.00155602]
[1736877090744,0.051896,96398.0,96394.0,0.051898]
[1736877091132,0.00155638,96417.0,96396.0,0.3608]
[1736877091336,0.00155638,96417.0,96416.0,0.051887]
[1736877091741,0.01366224,96417.0,96413.0,0.3608]
[1736877091943,0.051888,96414.0,96413.0,0.3608]
[1736877092543,0.051893,96405.0,96404.0,0.3608]
[1736877093937,0.11694776,96414.0,96404.0,0.3608]
[1736877093938,0.003,96414.0,96404.0,0.3608]
[1736877094136,0.003,96414.0,96413.0,0.412688]
[1736877094740,0.054888,96414.0,96413.0,0.3608]
[1736877095040,0.051888,96413.0,96412.0,0.051888]
[1736877095346,0.051888,96413.0,96412.0,0.412688]
[1736877096138,0.053888,96413.0,96412.0,0.412688]
[1736877096546,0.002,96413.0,96412.0,0.412688]
[1736877096742,0.053888,96413.0,96412.0,0.412688]
[1736877097238,0.002,96413.0,96412.0,0.051888]
[1736877097743,0.002,96413.0,96412.0,0.412688]
[1736877098137,0.0631,96437.0,96429.0,0.05188]
[1736877098339,0.051873,96442.0,96439.0,0.051874]
[1736877098540,0.05187,96448.0,96443.0,0.051872]
[1736877098740,0.42508257,96444.0,96438.0,0.051875]
[1736877099045,0.42508257,96444.0,96439.0,0.051874]
[1736877099844,0.42508257,96444.0,96436.0,0.3608]
[1736877100037,0.37321057,96444.0,96436.0,0.3608]
[1736877100233,0.051872,96443.0,96437.0,0.051875]
[1736877100647,0.051872,96443.0,96438.0,0.051875]
[1736877100847,0.051872,96443.0,96436.0,0.3608]
[1736877100848,0.051872,96443.0,96439.0,0.051874]
[1736877101144,0.051875,96437.0,96436.0,0.3608]
[1736877102443,0.060875,96437.0,96436.0,0.3618]
[1736877103147,0.009,96437.0,96436.0,0.3618]
[1736877103356,0.009,96437.0,96436.0,0.413676]
[1736877104541,0.009,96437.0,96436.0,0.3618]
[1736877104741,0.060875,96437.0,96436.0,0.3618]
[1736877104942,0.060875,96437.0,96436.0,0.001]
[1736877105944,0.060875,96437.0,96414.0,0.3608]
[1736877105945,0.051886,96418.0,96414.0,0.3608]
[1736877106746,0.11394776,96424.0,96414.0,0.3608]
[1736877107138,0.051887,96415.0,96414.0,0.3608]
[1736877107544,0.3608,96419.0,96399.0,0.0632]
[1736877107744,0.051891,96409.0,96404.0,0.051893]
[1736877107946,0.051892,96407.0,96404.0,0.051893]
[1736877108348,0.051895,96400.0,96399.0,0.0632]
[1736877108548,0.11394776,96410.0,96397.0,0.3608]
[1736877108549,0.051896,96399.0,96397.0,0.3608]
[1736877108743,0.051896,96398.0,96397.0,0.3608]
[1736877109540,0.051899,96393.0,96392.0,0.36235602]
[1736877109745,0.051899,96393.0,96392.0,0.00155602]
[1736877110850,0.1120557,96393.0,96392.0,0.00155602]
[1736877112451,0.1120557,96393.0,96392.0,0.00355602]
[1736877112846,0.051899,96393.0,96392.0,0.00355602]
[1736877113758,0.051899,96393.0,96392.0,0.00155602]
[1736877114258,0.06417252,96393.0,96392.0,0.00155602]
[1736877115761,0.06517252,96393.0,96392.0,0.00155602]
[1736877119762,0.01327352,96393.0,96392.0,0.00155602]
[1736877119958,0.001,96393.0,96392.0,0.05345502]
[1736877121059,0.001,96393.0,96392.0,0.00155602]
[1736877121364,0.052899,96393.0,96392.0,0.00155602]
[1736877121557,0.052899,96393.0,96392.0,0.00255602]
[1736877122160,0.001,96393.0,96392.0,0.05445502]
[1736877122366,0.01183916,96394.0,96392.0,0.41525502]
[1736877122564,0.001,96393.0,96392.0,0.41525502]
[1736877123058,0.052899,96393.0,96392.0,0.00255602]
[1736877123259,0.053899,96393.0,96392.0,0.00255602]
[1736877123762,0.053899,96393.0,96392.0,0.00155602]
[1736877123970,0.053899,96393.0,96392.0,0.00255602]
[1736877124662,0.053899,96393.0,96392.0,0.00155602]
[1736877124862,0.053899,96393.0,96392.0,0.00355602]
[1736877124863,0.051899,96393.0,96392.0,0.00355602]
[1736877125365,0.051899,96393.0,96392.0,0.00155602]
[1736877125566,0.051899,96393.0,96384.0,0.3608]
[1736877125567,0.052899,96393.0,96384.0,0.3608]
[1736877125761,0.051903,96385.0,96384.0,0.051904]
[1736877125962,0.051903,96385.0,96384.0,0.412704]
[1736877126764,0.051903,96385.0,96384.0,0.413704]
[1736877126965,0.001,96393.0,96384.0,0.3618]
[1736877127175,0.001,96393.0,96392.0,0.412699]
[1736877127473,0.051888,96414.0,96413.0,0.051887]
[1736877127659,0.00155639,96418.0,96417.0,0.051886]
[1736877127972,0.051887,96415.0,96414.0,0.117287]
[1736877128573,0.00155639,96418.0,96414.0,0.0654]
[1736877128763,0.00155639,96418.0,96417.0,0.051886]
[1736877130766,0.00155639,96418.0,96413.0,0.3608]
[1736877130973,0.00355639,96418.0,96417.0,0.051886]
[1736877131173,0.00355639,96418.0,96417.0,0.412686]
[1736877131671,0.007,96418.0,96417.0,0.413686]
[1736877131871,0.1225,96453.0,96444.0,0.051872]
[1736877132065,0.051869,96449.0,96446.0,0.05187]
[1736877132276,0.0617,96453.0,96446.0,0.05187]
[1736877132481,0.051872,96443.0,96442.0,0.0626]
[1736877133562,0.051872,96443.0,96442.0,0.114473]
[1736877133967,0.057872,96443.0,96442.0,0.476273]
[1736877134663,0.057872,96443.0,96442.0,0.3618]
[1736877135269,0.066872,96443.0,96442.0,0.3628]
[1736877135472,0.015,96443.0,96442.0,0.414673]
[1736877138475,0.005,96443.0,96442.0,0.413673]
[1736877138680,0.014,96443.0,96442.0,0.413673]
[1736877139773,0.065872,96443.0,96442.0,0.413673]
[1736877139977,0.065872,96443.0,96442.0,0.3618]
[1736877144076,0.065872,96443.0,96442.0,0.413673]
[1736877145282,0.065872,96443.0,96442.0,0.3618]
[1736877146272,0.065872,96443.0,96442.0,0.413673]
[1736877146572,0.3608,96458.0,96442.0,0.413673]
[1736877146573,0.60843818,96479.0,96442.0,0.413673]
[1736877146766,0.24763818,96479.0,96463.0,0.3608]
[1736877146964,0.24763818,96481.0,96478.0,0.3608]
[1736877147166,0.24763818,96481.0,96480.0,0.051852]
[1736877147577,0.24763818,96481.0,96480.0,0.412652]
[1736877148074,0.25663818,96481.0,96480.0,0.412652]
[1736877148580,0.00155516,96499.0,96480.0,0.3608]
[1736877148790,0.00155516,96499.0,96498.0,0.3608]
[1736877149381,0.05339716,96499.0,96498.0,0.412642]
[1736877149781,0.06497337,96499.0,96498.0,0.412642]
[1736877150075,0.00155516,96499.0,96498.0,0.412642]
[1736877150272,0.00155516,96499.0,96498.0,0.773442]
[1736877150879,0.00255516,96499.0,96498.0,0.773442]
[1736877151569,0.00255516,96499.0,96498.0,0.774442]
[1736877151570,0.00155516,96499.0,96498.0,0.774442]
[1736877151882,0.00255516,96499.0,96498.0,0.774442]
[1736877153675,0.051839,96505.0,96504.0,0.051839]
[1736877153676,0.01195118,96505.0,96504.0,0.051839]
[1736877153875,0.051836,96511.0,96498.0,0.774962]
[1736877154182,0.051836,96511.0,96510.0,0.412636]
[1736877155669,0.06368105,96511.0,96510.0,0.413636]
[1736877156271,0.01184505,96511.0,96510.0,0.413636]
[1736877156475,0.056832,96517.0,96516.0,0.051833]
[1736877158175,0.060832,96517.0,96516.0,0.051833]
[1736877158579,0.060832,96517.0,96516.0,0.052833]
[1736877159784,0.060832,96517.0,96516.0,0.001]
[1736877160692,0.05184,96503.0,96502.0,0.3608]
[1736877161297,0.051836,96510.0,96502.0,0.3608]
[1736877161786,0.003,96503.0,96502.0,0.41264]
[1736877162986,0.003,96503.0,96502.0,0.3608]
[1736877163184,0.05484,96503.0,96502.0,0.3608]
[1736877163787,0.05184,96503.0,96502.0,0.3608]
[1736877164588,0.05484,96503.0,96502.0,0.3608]
[1736877167693,0.05484,96503.0,96494.0,0.3608]
[1736877167897,0.051844,96495.0,96494.0,0.3608]
[1736877169894,0.051851,96483.0,96482.0,0.3608]
[1736877170199,0.051851,96483.0,96482.0,0.412651]
[1736877170798,0.051851,96483.0,96482.0,0.3608]
[1736877171194,0.051851,96483.0,96482.0,0.3618]
[1736877172000,0.06352489,96483.0,96482.0,0.3618]
[1736877172195,0.01167389,96483.0,96482.0,0.413651]
[1736877172391,0.05185,96484.0,96483.0,0.051851]
[1736877173194,0.05184,96503.0,96482.0,0.3618]
[1736877173399,0.4211,96507.0,96501.0,0.051841]
[1736877173400,0.42170001,96507.0,96501.0,0.051841]
[1736877173701,0.05184,96502.0,96501.0,0.051841]
[1736877174099,0.42170001,96507.0,96496.0,0.3608]
[1736877174301,0.05184,96504.0,96496.0,0.3608]
[1736877174492,0.05184,96504.0,96503.0,0.05184]
[1736877174898,0.07478722,96507.0,96503.0,1.5]
[1736877175100,0.07478722,96507.0,96506.0,0.412638]
[1736877175295,0.07178722,96507.0,96506.0,0.412638]
[1736877175996,0.01148722,96507.0,96506.0,0.412638]
[1736877176196,0.051836,96510.0,96509.0,0.051837]
[1736877177993,0.055836,96510.0,96509.0,0.051837]
[1736877178206,0.06703467,96510.0,96509.0,0.052837]
[1736877181202,0.004,96510.0,96509.0,0.052837]
[1736877181405,0.004,96510.0,96509.0,0.413637]
[1736877181801,0.004,96510.0,96509.0,1.913637]
[1736877182706,0.01162669,96521.0,96516.0,0.051833]
[1736877182900,0.01162669,96521.0,96516.0,0.412633]
[1736877183705,0.00155467,96530.0,96516.0,0.412633]
[1736877183903,0.01,96517.0,96516.0,0.413633]
[1736877184910,0.005,96517.0,96516.0,0.413633]
[1736877185114,0.009,96517.0,96516.0,0.413633]
[1736877185304,0.00155467,96530.0,96516.0,0.3618]
[1736877185609,0.01313292,96530.0,96529.0,0.412626]
[1736877185812,0.00155467,96530.0,96529.0,0.412626]
[1736877186508,0.00155467,96530.0,96529.0,1.912626]
[1736877187409,0.0688,96546.0,96529.0,1.912626]
[1736877187410,0.005,96546.0,96545.0,0.051817]
[1736877187596,0.005,96546.0,96545.0,0.412617]
[1736877187904,0.056817,96546.0,96545.0,0.3608]
[1736877188102,0.056817,96546.0,96545.0,0.7216]
[1736877188299,0.0644,96563.0,96545.0,0.773417]
[1736877188519,0.051809,96560.0,96546.0,0.0653]
[1736877188807,0.051809,96560.0,96559.0,0.3608]
[1736877189807,0.051809,96560.0,96547.0,0.00052]
[1736877190003,0.051817,96546.0,96536.0,0.3608]
[1736877190203,0.051817,96546.0,96536.0,0.412622]
[1736877190400,0.051817,96546.0,96536.0,0.3608]
[1736877190602,0.412617,96546.0,96536.0,0.3608]
[1736877190801,0.051822,96537.0,96536.0,0.3608]
[1736877191913,0.051822,96537.0,96536.0,0.3628]
[1736877192209,0.051822,96537.0,96536.0,0.3638]
[1736877192605,0.1925,96545.0,96536.0,0.7246]
[1736877192806,0.412602,96575.0,96544.0,0.3608]
[1736877192807,0.051813,96554.0,96544.0,0.3608]
[1736877193009,0.051813,96554.0,96553.0,0.3608]
[1736877193998,0.06309127,96554.0,96553.0,0.3608]
[1736877195698,0.01127827,96554.0,96553.0,0.3608]
[1736877195896,0.05181,96558.0,96553.0,0.3608]
[1736877196113,0.051811,96557.0,96553.0,0.3608]
[1736877196509,0.10339984,96560.0,96553.0,0.3608]
[1736877196714,0.051812,96554.0,96553.0,0.3608]
[1736877201508,0.051817,96545.0,96528.0,0.3608]
[1736877201710,0.051826,96529.0,96528.0,0.3608]
[1736877203607,0.06308227,96529.0,96528.0,0.3608]
[1736877203811,0.06308227,96529.0,96528.0,0.3708]
[1736877204814,0.42388227,96529.0,96528.0,0.009]
[1736877205317,0.42388227,96529.0,96528.0,0.004]
[1736877206905,0.051833,96515.0,96514.0,1.5004]
[1736877208019,0.051833,96515.0,96514.0,1.5034]
[1736877210115,0.051833,96515.0,96514.0,1.5054]
[1736877211718,0.051833,96515.0,96514.0,0.0054]
[1736877211919,0.06280284,96515.0,96514.0,0.0054]
[1736877217112,0.01096984,96515.0,96502.0,0.27]
[1736877217315,0.051846,96491.0,96469.0,0.412658]
[1736877217510,0.3608,96511.0,96469.0,0.412658]
[1736877217511,0.3608,96488.0,96470.0,0.1259]
[1736877217715,0.1219,96508.0,96481.0,0.3608]
[1736877217924,0.051844,96495.0,96487.0,0.051848]
[1736877218121,0.051845,96494.0,96486.0,0.051849]
[1736877218418,0.051846,96492.0,96489.0,0.3608]
[1736877218623,0.10319286,96499.0,96490.0,0.0626]
[1736877218822,0.051846,96492.0,96491.0,0.1215]
[1736877219020,0.051846,96492.0,96491.0,1.6215]
[1736877219218,0.051846,96492.0,96491.0,0.1215]
[1736877219820,0.051852,96480.0,96479.0,0.18399161]
[1736877220521,0.051854,96477.0,96476.0,0.059]
[1736877221212,0.06330573,96492.0,96476.0,0.059]
[1736877221213,0.001,96480.0,96476.0,0.059]
[1736877221516,0.001,96480.0,96479.0,0.420653]
[1736877221825,0.052852,96480.0,96479.0,0.420653]
[1736877222211,0.052852,96480.0,96479.0,1.920653]
[1736877222415,0.05122706,96480.0,96479.0,1.920653]
[1736877223028,0.05122706,96480.0,96479.0,1.912653]
[1736877223431,0.05122706,96480.0,96479.0,1.921653]
[1736877224021,0.05122706,96480.0,96479.0,1.8778]
[1736877224221,0.05122706,96480.0,96479.0,0.017]
[1736877225221,0.05122706,96480.0,96479.0,0.068853]
[1736877226221,0.05122706,96480.0,96479.0,0.429653]
[1736877229031,0.10319286,96490.0,96479.0,0.3778]
[1736877229225,0.3608,96492.0,96480.0,0.10319286]
[1736877229431,0.3608,96492.0,96491.0,0.051846]
[1736877230116,0.051843,96497.0,96485.0,0.0621]
[1736877230315,0.051844,96496.0,96495.0,0.051843]
[1736877231531,0.051836,96510.0,96508.0,0.051837]
[1736877231824,0.22209286,96520.0,96508.0,0.051837]
[1736877232024,0.051837,96509.0,96508.0,0.051837]
[1736877232822,0.051837,96509.0,96508.0,0.057837]
[1736877233132,0.051837,96509.0,96508.0,0.060837]
[1736877233327,0.051837,96509.0,96508.0,0.054837]
[1736877233523,0.051837,96509.0,96508.0,0.060837]
[1736877236526,0.06291906,96509.0,96508.0,0.060837]
[1736877240933,0.05183,96522.0,96508.0,0.060837]
[1736877240934,0.3608,96549.0,96508.0,0.3698]
[1736877241240,0.00060001,96535.0,96534.0,0.051823]
[1736877241428,0.0598,96545.0,96538.0,0.051821]
[1736877241633,0.01086479,96540.0,96538.0,0.051821]
[1736877242145,0.06268479,96540.0,96538.0,0.051821]
[1736877242630,0.00455441,96539.0,96538.0,0.051821]
[1736877243231,0.051823,96535.0,96534.0,1.5]
[1736877243631,0.00455441,96539.0,96534.0,1.5]
[1736877243828,0.051822,96537.0,96535.0,0.051823]
[1736877244026,0.00455441,96539.0,96534.0,1.5]
[1736877244027,0.00455441,96539.0,96536.0,0.051822]
[1736877244233,0.051821,96538.0,96537.0,0.051821]
[1736877245331,0.051823,96535.0,96534.0,1.5]
[1736877245734,0.051823,96535.0,96533.0,0.051824]
[1736877246140,0.051823,96535.0,96532.0,0.3608]
[1736877246346,0.051823,96535.0,96534.0,0.051823]
[1736877246539,0.00155441,96539.0,96532.0,0.3608]
[1736877246939,0.051822,96537.0,96536.0,0.051822]
[1736877247141,0.051822,96537.0,96532.0,0.3608]
[1736877247338,0.051827,96526.0,96525.0,0.00052]
[1736877247536,0.3608,96534.0,96516.0,0.18399161]
[1736877247736,0.051832,96517.0,96516.0,0.23582461]
[1736877247942,0.051832,96517.0,96516.0,0.18399161]
[1736877248332,0.0638,96523.0,96516.0,0.18399161]
[1736877248529,0.051832,96518.0,96517.0,0.051832]
[1736877248733,0.051834,96515.0,96513.0,0.412634]
[1736877248934,0.0638,96523.0,96513.0,0.412634]
[1736877249129,0.0638,96523.0,96516.0,0.005]
[1736877249335,0.051832,96517.0,96516.0,0.005]
[1736877249536,0.051832,96517.0,96516.0,0.008]
[1736877249840,0.051832,96517.0,96470.0,0.10319286]
[1736877249841,0.051843,96497.0,96496.0,0.00155427]
[1736877250046,0.412643,96497.0,96496.0,0.00155427]
[1736877250557,0.051832,96518.0,96496.0,0.00155427]
[1736877250733,0.0638,96523.0,96522.0,0.05183]
[1736877251039,0.3608,96535.0,96520.0,0.3608]
[1736877251244,0.051826,96530.0,96527.0,0.051827]
[1736877251435,0.051826,96530.0,96522.0,1.5]
[1736877251636,0.0637,96542.0,96528.0,0.3608]
[1736877251843,0.0637,96542.0,96540.0,0.05182]
[1736877252842,0.05182,96540.0,96539.0,0.3608]
[1736877253642,0.0657,96542.0,96540.0,0.051819]
[1736877253643,0.051819,96541.0,96540.0,0.051819]
[1736877254051,0.05182,96540.0,96539.0,0.3608]
[1736877254246,0.0657,96542.0,96531.0,0.051824]
[1736877254446,0.051823,96535.0,96531.0,0.051824]
[1736877254950,0.051823,96535.0,96532.0,0.051824]
[1736877255139,0.051823,96535.0,96528.0,0.3608]
[1736877255334,0.051823,96535.0,96529.0,0.051826]
[1736877255546,0.052823,96535.0,96533.0,0.051824]
[1736877255740,0.052823,96535.0,96534.0,0.051823]
[1736877256139,0.053823,96535.0,96534.0,0.051823]
[1736877256545,0.002,96535.0,96534.0,0.051823]
[1736877258152,0.001,96535.0,96534.0,0.051823]
[1736877258346,0.004,96535.0,96534.0,0.051823]
[1736877260252,0.004,96535.0,96534.0,0.412623]
[1736877269257,0.055823,96535.0,96534.0,0.412623]
[1736877273262,0.055823,96535.0,96534.0,0.3608]
[1736877273561,0.055823,96535.0,96529.0,0.18399161]
[1736877273562,0.051825,96530.0,96529.0,0.18399161]
[1736877273872,0.051826,96528.0,96527.0,0.18399161]
[1736877274052,0.412626,96528.0,96527.0,0.18399161]
[1736877275363,0.412626,96528.0,96513.0,0.412634]
[1736877275364,0.051834,96515.0,96513.0,0.412634]
[1736877275555,0.051834,96514.0,96513.0,0.051834]
[1736877275759,0.051837,96509.0,96508.0,0.3608]
[1736877276667,0.051837,96509.0,96508.0,0.412637]
[1736877277859,0.051837,96509.0,96508.0,0.415637]
[1736877278457,0.051837,96509.0,96508.0,0.420637]
[1736877278969,0.051834,96513.0,96512.0,0.051834]
[1736877279260,0.051832,96518.0,96517.0,0.051831]
[1736877279660,0.37147541,96520.0,96508.0,0.3688]
[1736877279866,0.051835,96513.0,96512.0,0.051835]
[1736877280063,0.051835,96513.0,96512.0,1.551835]
[1736877280266,0.01067541,96520.0,96512.0,1.5]
[1736877280468,0.051833,96517.0,96516.0,0.051832]
[1736877281656,0.051833,96517.0,96516.0,0.053832]
[1736877282262,0.051833,96517.0,96516.0,0.056832]
[1736877282770,0.051833,96517.0,96516.0,0.053832]
[1736877282969,0.051833,96517.0,96516.0,0.055832]
[1736877283266,0.051833,96517.0,96516.0,0.003]
[1736877284664,0.412633,96517.0,96516.0,0.004]
[1736877285057,0.412633,96517.0,96516.0,0.003]
[1736877285459,0.412633,96517.0,96516.0,0.001]
[1736877285769,0.412633,96517.0,96516.0,0.002]
[1736877287164,0.05183,96522.0,96520.0,0.05183]
[1736877287563,0.05183,96521.0,96520.0,0.05183]
[1736877288567,0.051832,96517.0,96516.0,0.002]
[1736877288873,0.051832,96517.0,96516.0,0.052833]
[1736877289664,0.051832,96517.0,96516.0,0.051833]
[1736877290468,0.051832,96517.0,96492.0,1.92242]
[1736877290469,0.3608,96517.0,96496.0,0.051843]
[1736877290668,0.051838,96507.0,96492.0,0.42242]
[1736877290974,0.051838,96507.0,96489.0,0.18399161]
[1736877290975,0.051847,96490.0,96489.0,0.18399161]
[1736877291467,0.051847,96489.0,96488.0,0.01112673]
[1736877291675,0.3608,96494.0,96484.0,0.3608]
[1736877291676,0.051849,96485.0,96484.0,0.3608]
[1736877292674,0.051849,96485.0,96484.0,0.37166642]
[1736877293566,0.051849,96485.0,96484.0,0.37866642]
[1736877293766,0.051849,96485.0,96484.0,0.38766642]
[1736877295068,0.051849,96485.0,96484.0,0.43951642]
[1736877295378,0.051842,96501.0,96500.0,0.05184]
[1736877295571,0.051842,96499.0,96498.0,0.412642]
[1736877295764,0.051838,96507.0,96498.0,1.5]
[1736877295968,0.051842,96499.0,96498.0,1.5]
[1736877296168,0.051848,96488.0,96487.0,0.051847]
[1736877296365,0.051849,96485.0,96484.0,0.3768]
[1736877296679,0.051849,96485.0,96484.0,0.3698]
[1736877297489,0.051849,96485.0,96484.0,0.3608]
[1736877298169,0.051849,96485.0,96484.0,0.3698]
[1736877299077,0.051849,96485.0,96484.0,0.3768]
[1736877299378,0.051849,96485.0,96484.0,0.42865]
[1736877303075,0.051849,96485.0,96484.0,0.016]
[1736877310677,0.051849,96485.0,96470.0,0.18425817]
[1736877310678,0.051857,96471.0,96470.0,0.18425817]
[1736877310883,0.051857,96471.0,96465.0,0.24520575]
[1736877310884,0.05186,96466.0,96465.0,0.24520575]
[1736877311194,0.05186,96466.0,96435.0,0.47821789]
[1736877311195,0.051864,96458.0,96449.0,0.01067491]
[1736877311487,0.051864,96458.0,96435.0,0.42634189]
[1736877311488,0.412664,96458.0,96457.0,0.03695602]
[1736877311681,0.412664,96458.0,96432.0,0.0627]
[1736877311682,0.051875,96437.0,96436.0,0.36570953]
[1736877312991,0.051862,96462.0,96458.0,0.051864]
[1736877313192,0.3608,96465.0,96436.0,0.36670953]
[1736877313193,0.3608,96465.0,96443.0,0.412672]
[1736877313510,0.051867,96453.0,96452.0,0.051867]
[1736877314193,0.051871,96446.0,96442.0,0.051872]
[1736877314390,0.051874,96440.0,96439.0,0.00052]
[1736877314592,0.3608,96446.0,96437.0,0.051875]
[1736877314787,0.051875,96438.0,96437.0,0.051875]
[1736877315989,0.051872,96443.0,96440.0,0.051874]
[1736877316193,0.051873,96441.0,96440.0,0.051874]
[1736877316392,0.051874,96440.0,96437.0,0.007]
[1736877316786,0.052874,96440.0,96439.0,0.009]
[1736877317182,0.37182035,96446.0,96437.0,0.007]
[1736877317385,0.412675,96438.0,96437.0,0.007]
[1736877317794,0.412675,96438.0,96437.0,0.004]
[1736877318496,0.412675,96438.0,96419.0,0.3608]
[1736877318497,0.412675,96438.0,96424.0,0.051882]
[1736877318688,0.05188,96429.0,96424.0,0.051882]
[1736877319089,0.051881,96427.0,96424.0,0.051882]
[1736877319291,0.3608,96429.0,96416.0,0.00155563]
[1736877319493,0.051884,96421.0,96418.0,0.051885]
[1736877320000,0.10319286,96426.0,96418.0,0.051885]
[1736877320001,0.051885,96420.0,96418.0,0.051885]
[1736877320290,0.051886,96417.0,96416.0,0.00155563]
[1736877322197,0.42350138,96417.0,96416.0,0.00355563]
[1736877327293,0.0604,96433.0,96416.0,0.00355563]
[1736877327294,0.3608,96436.0,96416.0,0.00355563]
[1736877327501,0.3608,96436.0,96425.0,0.10319286]
[1736877327695,0.051878,96433.0,96426.0,1.5]
[1736877327894,0.051878,96433.0,96432.0,0.051878]
[1736877328094,0.37147294,96436.0,96426.0,1.5]
[1736877328095,0.37147294,96436.0,96435.0,0.051876]
[1736877328404,0.00060001,96439.0,96438.0,0.051875]
[1736877328597,0.00155603,96440.0,96431.0,0.059]
[1736877328905,0.051876,96436.0,96434.0,0.051877]
[1736877329099,0.051876,96436.0,96431.0,0.059]
[1736877329399,0.001,96436.0,96435.0,0.051876]
[1736877329902,0.052876,96436.0,96435.0,0.051876]
[1736877330704,0.052876,96436.0,96435.0,0.056876]
[1736877331598,0.052876,96436.0,96435.0,0.059876]
[1736877332504,0.00155603,96440.0,96435.0,0.059876]
[1736877332800,0.00155603,96440.0,96439.0,0.051874]
[1736877332996,0.05343003,96440.0,96439.0,0.051874]
[1736877333601,0.051876,96436.0,96435.0,0.008]
[1736877333799,0.051876,96436.0,96435.0,0.059876]
[1736877334196,0.051876,96436.0,96435.0,0.054876]
[1736877334596,0.00155603,96440.0,96439.0,0.053874]
[1736877335197,0.3608,96448.0,96447.0,0.05187]
[1736877335598,0.3608,96458.0,96447.0,0.3608]
[1736877335800,0.051867,96454.0,96453.0,0.051865]
[1736877337100,0.37169656,96458.0,96453.0,0.053865]
[1736877337306,0.051865,96457.0,96456.0,0.051865]